fUST/lending_fUST_20260618
["ID","MTS","AMOUNT","RATE_DAILY","PERIOD"]
[425361060,1781722250000,-562.30342004,0.00015542,2]
[425361058,1781722250000,-151.0,0.0001552,2]
[425361057,1781722250000,-202.491352,0.0001552,2]
[425361076,1781722250000,-186.0,0.00015815,2]
[425361080,1781722250000,-167.92495011,0.000159,2]
[425361065,1781722250000,-549.66720122,0.000157,2]
[425361083,1781722250000,-326.8661211,0.00015921,2]
[425361081,1781722250000,-457.8996079,0.00015912,2]
[425361077,1781722250000,-445.0,0.00015815,2]
[425361079,1781722250000,-549.66720122,0.000159,2]
[425361072,1781722250000,-1418.0,0.00015815,2]
[425361070,1781722250000,-958.0,0.00015815,2]
[425361067,1781722250000,-167.92495011,0.000157,2]
[425361046,1781722250000,-326.8661211,0.00015096,2]
[425361059,1781722250000,-562.30342004,0.0001554,2]
[425361045,1781722250000,-457.8996078,0.00015096,2]
[425361019,1781722250000,-165.29009,0.00013699,2]
[425361044,1781722250000,-326.8661214,0.00015096,2]
[425361014,1781722250000,-500.0,0.00013698,2]
[425361013,1781722250000,-321.97362574,0.00013698,2]
[425361027,1781722250000,-155.98,0.00013715,2]
[425361026,1781722250000,-641.42531363,0.00013699,2]
[425361016,1781722250000,-500.0,0.00013698,2]
[425361015,1781722250000,-558.55850572,0.00013698,2]
[425361018,1781722250000,-240.494186,0.00013699,2]
[425361017,1781722250000,-217.50029529,0.00013698,2]
[425361074,1781722250000,-745.0,0.00015815,2]
[425361020,1781722250000,-151.0,0.00013699,2]
[425361021,1781722250000,-151.0,0.00013699,2]
[425361022,1781722250000,-151.0,0.00013699,2]
[425361024,1781722250000,-450.512583,0.00013699,2]
[425361023,1781722250000,-151.0,0.00013699,2]
[425361042,1781722250000,-457.8996078,0.0001509,2]
[425361025,1781722250000,-151.0,0.00013699,2]
[425361028,1781722250000,-156.73,0.0001375,2]
[425361039,1781722250000,-1011.0,0.00015,6]
[425361038,1781722250000,-156.0,0.00014962,2]
[425361033,1781722250000,-326.8661211,0.00014274,2]
[425361037,1781722250000,-188.40008172,0.000149,2]
[425361030,1781722250000,-457.8996078,0.00014268,2]
[425361035,1781722250000,-450.512583,0.00014658,2]
[425361036,1781722250000,-188.40008173,0.000149,2]
[425361031,1781722250000,-331.429429,0.00014274,2]
[425361034,1781722250000,-166.394006,0.00014295,2]
[425361032,1781722250000,-326.8661211,0.00014274,2]
[425361041,1781722250000,-326.8661211,0.0001509,2]
[425361051,1781722250000,-549.66720122,0.000155,2]
[425361040,1781722250000,-187.477589,0.00015068,2]
[425361029,1781722250000,-157.61,0.00013771,2]
[425361084,1781722250000,-305.82,0.00015923,2]
[425361082,1781722250000,-457.8996078,0.00015918,2]
[425361094,1781722250000,-419.013287,0.0001616,2]
[425361125,1781722250000,-500.0,0.00016438,2]
[425361122,1781722250000,-1000.0,0.00016438,2]
[425361123,1781722250000,-500.0,0.00016438,2]
[425361121,1781722250000,-500.0,0.00016438,2]
[425361124,1781722250000,-1303.36,0.00016438,2]
[425361127,1781722250000,-500.0,0.00016438,2]
[425361130,1781722250000,-500.0,0.00016438,2]
[425361128,1781722250000,-500.0,0.00016438,2]
[425361129,1781722250000,-500.0,0.00016438,2]
[425361138,1781722250000,-500.0,0.00016438,2]
[425361126,1781722250000,-500.0,0.00016438,2]
[425361139,1781722250000,-500.0,0.00016438,2]
[425361131,1781722250000,-500.0,0.00016438,2]
[425361133,1781722250000,-500.0,0.00016438,2]
[425361118,1781722250000,-305.82,0.00016259,2]
[425361132,1781722250000,-500.0,0.00016438,2]
[425361134,1781722250000,-505.44599689,0.00016438,2]
[425361135,1781722250000,-500.0,0.00016438,2]
[425361141,1781722250000,-500.0,0.00016438,2]
[425361143,1781722250000,-500.0,0.00016438,2]
[425361144,1781722250000,-500.0,0.00016438,2]
[425361142,1781722250000,-514.75,0.00016438,2]
[425361146,1781722250000,-659.66,0.00016438,2]
[425361151,1781722250000,-1358.43,0.00016438,2]
[425361145,1781722250000,-812.0,0.00016438,2]
[425361147,1781722250000,-552.9,0.00016438,2]
[425361150,1781722250000,-500.0,0.00016438,2]
[425361149,1781722250000,-500.0,0.00016438,2]
[425361086,1781722250000,-167.92495011,0.00016,2]
[425361148,1781722250000,-693.75,0.00016438,2]
[425361136,1781722250000,-500.0,0.00016438,2]
[425361116,1781722250000,-167.92495011,0.000162,2]
[425361140,1781722250000,-500.0,0.00016438,2]
[425361117,1781722250000,-151.0,0.000162,2]
[425361087,1781722250000,-305.82,0.00016035,2]
[425361090,1781722250000,-160.0,0.0001616,2]
[425361114,1781722250000,-4932.533743,0.000162,2]
[425361085,1781722250000,-549.66720122,0.00016,2]
[425361096,1781722250000,-160.0,0.0001616,2]
[425361091,1781722250000,-357.707351,0.0001616,2]
[425361088,1781722250000,-306.59,0.00016097,2]
[425361095,1781722250000,-678.026575,0.0001616,2]
[425361089,1781722250000,-305.82,0.00016147,2]
[425361093,1781722250000,-160.0,0.0001616,2]
[425361092,1781722250000,-555.414702,0.0001616,2]
[425361099,1781722250000,-160.0,0.0001616,2]
[425361098,1781722250000,-627.443002,0.0001616,2]
[425361105,1781722250000,-160.0,0.0001616,2]
[425361106,1781722250000,-251.646438,0.0001616,2]
[425361097,1781722250000,-393.721501,0.0001616,2]
[425361108,1781722250000,-160.0,0.0001616,2]
[425361120,1781722250000,-1354.729,0.00016438,2]
[425361113,1781722250000,-4323.839237,0.0001616,2]
[425361107,1781722250000,-343.292877,0.0001616,2]
[425361115,1781722250000,-549.66720122,0.000162,2]
[425361112,1781722250000,-2241.919618,0.0001616,2]
[425361111,1781722250000,-160.0,0.0001616,2]
[425361103,1781722250000,-251.359651,0.0001616,2]
[425361102,1781722250000,-160.0,0.0001616,2]
[425361119,1781722250000,-305.82,0.0001637,2]
[425361104,1781722250000,-342.719303,0.0001616,2]
[425361110,1781722250000,-345.568118,0.0001616,2]
[425361109,1781722250000,-252.784059,0.0001616,2]
[425361100,1781722250000,-3148.68722,0.0001616,2]
[425361101,1781722250000,-6137.37444,0.0001616,2]
[425361194,1781722251000,-519.39,0.00016438,2]
[425361200,1781722251000,-500.0,0.00016438,2]
[425361199,1781722251000,-1850.59,0.00016438,2]
[425361197,1781722251000,-504.26042291,0.00016438,2]
[425361193,1781722251000,-732.78,0.00016438,2]
[425361183,1781722251000,-500.0,0.00016438,2]
[425361192,1781722251000,-500.0,0.00016438,2]
[425361190,1781722251000,-500.0,0.00016438,2]
[425361196,1781722251000,-500.0,0.00016438,2]
[425361188,1781722251000,-3478.92,0.00016438,2]
[425361189,1781722251000,-500.0,0.00016438,2]
[425361187,1781722251000,-500.0,0.00016438,2]
[425361207,1781722251000,-500.0,0.00016438,2]
[425361191,1781722251000,-500.0,0.00016438,2]
[425361210,1781722251000,-588.0,0.00016438,2]
[425361213,1781722251000,-500.0,0.00016438,2]
[425361203,1781722251000,-500.0,0.00016438,2]
[425361206,1781722251000,-859.62,0.00016438,2]
[425361202,1781722251000,-1000.0,0.00016438,2]
[425361198,1781722251000,-1137.24,0.00016438,2]
[425361205,1781722251000,-13266.56,0.00016438,2]
[425361204,1781722251000,-500.0,0.00016438,2]
[425361209,1781722251000,-500.0,0.00016438,2]
[425361208,1781722251000,-1380.44,0.00016438,2]
[425361217,1781722251000,-522.81,0.00016438,2]
[425361211,1781722251000,-804.99,0.00016438,2]
[425361216,1781722251000,-500.0,0.00016438,2]
[425361212,1781722251000,-500.0,0.00016438,2]
[425361218,1781722251000,-500.0,0.00016438,2]
[425361195,1781722251000,-975.4,0.00016438,2]
[425361201,1781722251000,-505.7653913,0.00016438,2]
[425361185,1781722251000,-151.0,0.00016438,2]
[425361152,1781722251000,-500.0,0.00016438,2]
[425361184,1781722251000,-151.0,0.00016438,2]
[425361215,1781722251000,-352.8323378,0.00016438,2]
[425361153,1781722251000,-500.0,0.00016438,2]
[425361155,1781722251000,-500.0,0.00016438,2]
[425361166,1781722251000,-500.0,0.00016438,2]
[425361165,1781722251000,-588.06,0.00016438,2]
[425361156,1781722251000,-500.0,0.00016438,2]
[425361157,1781722251000,-500.0,0.00016438,2]
[425361167,1781722251000,-500.0,0.00016438,2]
[425361154,1781722251000,-754.09,0.00016438,2]
[425361160,1781722251000,-500.0,0.00016438,2]
[425361164,1781722251000,-500.0,0.00016438,2]
[425361162,1781722251000,-500.0,0.00016438,2]
[425361158,1781722251000,-500.0,0.00016438,2]
[425361161,1781722251000,-500.0,0.00016438,2]
[425361159,1781722251000,-500.0,0.00016438,2]
[425361163,1781722251000,-682.69,0.00016438,2]
[425361168,1781722251000,-500.0,0.00016438,2]
[425361182,1781722251000,-500.0,0.00016438,2]
[425361175,1781722251000,-500.0,0.00016438,2]
[425361181,1781722251000,-500.0,0.00016438,2]
[425361177,1781722251000,-500.0,0.00016438,2]
[425361176,1781722251000,-500.0,0.00016438,2]
[425361170,1781722251000,-1893.11,0.00016438,2]
[425361186,1781722251000,-500.0,0.00016438,2]
[425361173,1781722251000,-500.0,0.00016438,2]
[425361178,1781722251000,-500.0,0.00016438,2]
[425361174,1781722251000,-500.0,0.00016438,2]
[425361169,1781722251000,-500.0,0.00016438,2]
[425361171,1781722251000,-500.0,0.00016438,2]
[425361180,1781722251000,-500.0,0.00016438,2]
[425361179,1781722251000,-500.0,0.00016438,2]
[425361172,1781722251000,-500.0,0.00016438,2]
[425361214,1781722251000,-873.43,0.00016438,2]
[425361269,1781722251000,-879.87033975,0.00016712,2]
[425361219,1781722251000,-500.0,0.00016438,2]
[425361262,1781722251000,-201.087723,0.0001666,2]
[425361257,1781722251000,-305.82,0.00016482,2]
[425361258,1781722251000,-115277.19709406,0.000165,2]
[425361255,1781722251000,-500.0,0.00016438,2]
[425361263,1781722251000,-201.317152,0.0001666,2]
[425361261,1781722251000,-306.59,0.00016643,2]
[425361260,1781722251000,-305.82,0.00016594,2]
[425361259,1781722251000,-280.391,0.00016575,2]
[425361265,1781722251000,-600.0,0.00016663,2]
[425361276,1781722251000,-500.0,0.00016712,2]
[425361275,1781722251000,-500.0,0.00016712,2]
[425361277,1781722251000,-500.0,0.00016712,2]
[425361264,1781722251000,-202.227248,0.0001666,2]
[425361266,1781722251000,-305.82,0.00016706,2]
[425361251,1781722251000,-500.0,0.00016438,2]
[425361271,1781722251000,-1303.36,0.00016712,2]
[425361270,1781722251000,-500.0,0.00016712,2]
[425361267,1781722251000,-500.0,0.00016712,2]
[425361273,1781722251000,-500.0,0.00016712,2]
[425361272,1781722251000,-500.0,0.00016712,2]
[425361274,1781722251000,-500.0,0.00016712,2]
[425361278,1781722251000,-500.0,0.00016712,2]
[425361281,1781722251000,-500.0,0.00016712,2]
[425361283,1781722251000,-500.0,0.00016712,2]
[425361282,1781722251000,-500.0,0.00016712,2]
[425361279,1781722251000,-500.0,0.00016712,2]
[425361280,1781722251000,-500.0,0.00016712,2]
[425361284,1781722251000,-500.0,0.00016712,2]
[425361221,1781722251000,-500.0,0.00016438,2]
[425361286,1781722251000,-500.0,0.00016712,2]
[425361268,1781722251000,-1617.3144,0.00016712,2]
[425361256,1781722251000,-675.22456326,0.00016475,2]
[425361285,1781722251000,-500.0,0.00016712,2]
[425361253,1781722251000,-2162.59,0.00016438,2]
[425361254,1781722251000,-500.0,0.00016438,2]
[425361233,1781722251000,-500.0,0.00016438,2]
[425361232,1781722251000,-1892.21,0.00016438,2]
[425361224,1781722251000,-1185.06,0.00016438,2]
[425361234,1781722251000,-500.0,0.00016438,2]
[425361235,1781722251000,-500.0,0.00016438,2]
[425361223,1781722251000,-760.15,0.00016438,2]
[425361229,1781722251000,-840.76,0.00016438,2]
[425361230,1781722251000,-500.0,0.00016438,2]
[425361222,1781722251000,-500.0,0.00016438,2]
[425361228,1781722251000,-500.0,0.00016438,2]
[425361227,1781722251000,-500.0,0.00016438,2]
[425361231,1781722251000,-839.35,0.00016438,2]
[425361225,1781722251000,-647.98,0.00016438,2]
[425361226,1781722251000,-838.6,0.00016438,2]
[425361220,1781722251000,-425.8586056,0.00016438,2]
[425361236,1781722251000,-2335.76,0.00016438,2]
[425361237,1781722251000,-354.39171766,0.00016438,2]
[425361250,1781722251000,-921.73,0.00016438,2]
[425361246,1781722251000,-2258.76,0.00016438,2]
[425361245,1781722251000,-615.46,0.00016438,2]
[425361249,1781722251000,-500.0,0.00016438,2]
[425361248,1781722251000,-500.0,0.00016438,2]
[425361247,1781722251000,-502.63051287,0.00016438,2]
[425361252,1781722251000,-2221.85,0.00016438,2]
[425361244,1781722251000,-1576.6,0.00016438,2]
[425361243,1781722251000,-500.0,0.00016438,2]
[425361240,1781722251000,-500.0,0.00016438,2]
[425361238,1781722251000,-500.0,0.00016438,2]
[425361239,1781722251000,-500.0,0.00016438,2]
[425361242,1781722251000,-656.06,0.00016438,2]
[425361241,1781722251000,-701.31,0.00016438,2]
[425361328,1781722252000,-500.0,0.00016712,2]
[425361323,1781722252000,-500.0,0.00016712,2]
[425361324,1781722252000,-570.80472358,0.00016712,2]
[425361327,1781722252000,-500.0,0.00016712,2]
[425361333,1781722252000,-500.0,0.00016712,2]
[425361319,1781722252000,-500.0,0.00016712,2]
[425361321,1781722252000,-500.0,0.00016712,2]
[425361332,1781722252000,-500.0,0.00016712,2]
[425361330,1781722252000,-500.0,0.00016712,2]
[425361331,1781722252000,-3478.92,0.00016712,2]
[425361329,1781722252000,-500.0,0.00016712,2]
[425361322,1781722252000,-500.0,0.00016712,2]
[425361320,1781722252000,-500.0,0.00016712,2]
[425361339,1781722252000,-500.0,0.00016712,2]
[425361326,1781722252000,-500.0,0.00016712,2]
[425361334,1781722252000,-500.0,0.00016712,2]
[425361335,1781722252000,-500.0,0.00016712,2]
[425361337,1781722252000,-519.39,0.00016712,2]
[425361336,1781722252000,-732.78,0.00016712,2]
[425361338,1781722252000,-975.4,0.00016712,2]
[425361341,1781722252000,-1850.59,0.00016712,2]
[425361352,1781722252000,-804.99,0.00016712,2]
[425361343,1781722252000,-929.20631428,0.00016712,2]
[425361344,1781722252000,-500.0,0.00016712,2]
[425361351,1781722252000,-588.0,0.00016712,2]
[425361340,1781722252000,-1137.24,0.00016712,2]
[425361342,1781722252000,-500.0,0.00016712,2]
[425361312,1781722252000,-500.0,0.00016712,2]
[425361325,1781722252000,-340.38260032,0.00016712,2]
[425361315,1781722252000,-1893.11,0.00016712,2]
[425361299,1781722252000,-754.09,0.00016712,2]
[425361308,1781722252000,-682.69,0.00016712,2]
[425361347,1781722252000,-13266.56,0.00016712,2]
[425361290,1781722252000,-812.0,0.00016712,2]
[425361289,1781722252000,-500.0,0.00016712,2]
[425361287,1781722252000,-514.75,0.00016712,2]
[425361288,1781722252000,-500.0,0.00016712,2]
[425361291,1781722252000,-659.66,0.00016712,2]
[425361293,1781722252000,-693.75,0.00016712,2]
[425361305,1781722252000,-500.0,0.00016712,2]
[425361303,1781722252000,-500.0,0.00016712,2]
[425361292,1781722252000,-552.9,0.00016712,2]
[425361304,1781722252000,-500.0,0.00016712,2]
[425361297,1781722252000,-500.0,0.00016712,2]
[425361296,1781722252000,-1358.43,0.00016712,2]
[425361310,1781722252000,-588.06,0.00016712,2]
[425361294,1781722252000,-500.0,0.00016712,2]
[425361301,1781722252000,-500.0,0.00016712,2]
[425361295,1781722252000,-500.0,0.00016712,2]
[425361298,1781722252000,-500.0,0.00016712,2]
[425361300,1781722252000,-500.0,0.00016712,2]
[425361307,1781722252000,-500.0,0.00016712,2]
[425361317,1781722252000,-500.0,0.00016712,2]
[425361318,1781722252000,-500.0,0.00016712,2]
[425361316,1781722252000,-500.0,0.00016712,2]
[425361313,1781722252000,-397.70050439,0.00016712,2]
[425361309,1781722252000,-500.0,0.00016712,2]
[425361311,1781722252000,-500.0,0.00016712,2]
[425361314,1781722252000,-500.0,0.00016712,2]
[425361306,1781722252000,-500.0,0.00016712,2]
[425361302,1781722252000,-500.0,0.00016712,2]
[425361348,1781722252000,-500.0,0.00016712,2]
[425361385,1781722252000,-267.25449753,0.00016712,2]
[425361349,1781722252000,-1380.44,0.00016712,2]
[425361382,1781722252000,-1576.6,0.00016712,2]
[425361388,1781722252000,-500.0,0.00016712,2]
[425361379,1781722252000,-701.31,0.00016712,2]
[425361381,1781722252000,-500.0,0.00016712,2]
[425361391,1781722252000,-625.61744492,0.00016712,2]
[425361386,1781722252000,-500.0,0.00016712,2]
[425361387,1781722252000,-921.73,0.00016712,2]
[425361390,1781722252000,-2162.59,0.00016712,2]
[425361389,1781722252000,-2221.85,0.00016712,2]
[425361394,1781722252000,-305.82,0.00016817,2]
[425361393,1781722252000,-457.8996078,0.00016739,2]
[425361403,1781722252000,-4035.455314,0.00016968,2]
[425361392,1781722252000,-500.0,0.00016712,2]
[425361405,1781722252000,-581.73046639,0.00016986,2]
[425361396,1781722252000,-965.809848,0.00016968,2]
[425361401,1781722252000,-452.963589,0.00016968,2]
[425361398,1781722252000,-1063.048053,0.00016968,2]
[425361402,1781722252000,-455.011306,0.00016968,2]
[425361400,1781722252000,-452.447372,0.00016968,2]
[425361399,1781722252000,-5667.636996,0.00016968,2]
[425361406,1781722252000,-1617.3144,0.00016986,2]
[425361407,1781722252000,-500.0,0.00016986,2]
[425361404,1781722252000,-570.99618852,0.00016984,2]
[425361408,1781722252000,-1303.36,0.00016986,2]
[425361409,1781722252000,-500.0,0.00016986,2]
[425361410,1781722252000,-500.0,0.00016986,2]
[425361411,1781722252000,-500.0,0.00016986,2]
[425361345,1781722252000,-500.0,0.00016712,2]
[425361397,1781722252000,-1131.335876,0.00016968,2]
[425361383,1781722252000,-615.46,0.00016712,2]
[425361395,1781722252000,-305.82,0.00016929,2]
[425361380,1781722252000,-656.06,0.00016712,2]
[425361384,1781722252000,-2258.76,0.00016712,2]
[425361346,1781722252000,-859.62,0.00016712,2]
[425361350,1781722252000,-500.0,0.00016712,2]
[425361353,1781722252000,-500.0,0.00016712,2]
[425361355,1781722252000,-873.43,0.00016712,2]
[425361356,1781722252000,-500.0,0.00016712,2]
[425361358,1781722252000,-500.0,0.00016712,2]
[425361361,1781722252000,-500.0,0.00016712,2]
[425361357,1781722252000,-522.81,0.00016712,2]
[425361354,1781722252000,-500.0,0.00016712,2]
[425361364,1781722252000,-647.98,0.00016712,2]
[425361359,1781722252000,-500.0,0.00016712,2]
[425361363,1781722252000,-1185.06,0.00016712,2]
[425361362,1781722252000,-760.15,0.00016712,2]
[425361360,1781722252000,-500.0,0.00016712,2]
[425361371,1781722252000,-1892.21,0.00016712,2]
[425361378,1781722252000,-500.0,0.00016712,2]
[425361366,1781722252000,-500.0,0.00016712,2]
[425361369,1781722252000,-500.0,0.00016712,2]
[425361368,1781722252000,-840.76,0.00016712,2]
[425361367,1781722252000,-500.0,0.00016712,2]
[425361375,1781722252000,-2335.76,0.00016712,2]
[425361374,1781722252000,-500.0,0.00016712,2]
[425361373,1781722252000,-500.0,0.00016712,2]
[425361372,1781722252000,-500.0,0.00016712,2]
[425361376,1781722252000,-500.0,0.00016712,2]
[425361365,1781722252000,-838.6,0.00016712,2]
[425361370,1781722252000,-839.35,0.00016712,2]
[425361377,1781722252000,-500.0,0.00016712,2]
[425361450,1781722253000,-500.0,0.00016986,2]
[425361449,1781722253000,-500.0,0.00016986,2]
[425361451,1781722253000,-1893.11,0.00016986,2]
[425361448,1781722253000,-500.0,0.00016986,2]
[425361454,1781722253000,-500.0,0.00016986,2]
[425361447,1781722253000,-588.06,0.00016986,2]
[425361455,1781722253000,-500.0,0.00016986,2]
[425361452,1781722253000,-500.0,0.00016986,2]
[425361457,1781722253000,-500.0,0.00016986,2]
[425361456,1781722253000,-500.0,0.00016986,2]
[425361445,1781722253000,-682.69,0.00016986,2]
[425361461,1781722253000,-500.0,0.00016986,2]
[425361453,1781722253000,-500.0,0.00016986,2]
[425361463,1781722253000,-500.0,0.00016986,2]
[425361474,1781722253000,-1137.24,0.00016986,2]
[425361460,1781722253000,-500.0,0.00016986,2]
[425361466,1781722253000,-500.0,0.00016986,2]
[425361464,1781722253000,-500.0,0.00016986,2]
[425361465,1781722253000,-3478.92,0.00016986,2]
[425361462,1781722253000,-500.0,0.00016986,2]
[425361468,1781722253000,-500.0,0.00016986,2]
[425361467,1781722253000,-500.0,0.00016986,2]
[425361459,1781722253000,-500.0,0.00016986,2]
[425361469,1781722253000,-500.0,0.00016986,2]
[425361471,1781722253000,-519.39,0.00016986,2]
[425361481,1781722253000,-500.0,0.00016986,2]
[425361470,1781722253000,-732.78,0.00016986,2]
[425361480,1781722253000,-13266.56,0.00016986,2]
[425361446,1781722253000,-500.0,0.00016986,2]
[425361458,1781722253000,-500.0,0.00016986,2]
[425361440,1781722253000,-500.0,0.00016986,2]
[425361413,1781722253000,-500.0,0.00016986,2]
[425361444,1781722253000,-500.0,0.00016986,2]
[425361473,1781722253000,-500.0,0.00016986,2]
[425361416,1781722253000,-500.0,0.00016986,2]
[425361415,1781722253000,-500.0,0.00016986,2]
[425361414,1781722253000,-500.0,0.00016986,2]
[425361417,1781722253000,-500.0,0.00016986,2]
[425361420,1781722253000,-500.0,0.00016986,2]
[425361421,1781722253000,-500.0,0.00016986,2]
[425361418,1781722253000,-500.0,0.00016986,2]
[425361429,1781722253000,-552.9,0.00016986,2]
[425361424,1781722253000,-514.75,0.00016986,2]
[425361419,1781722253000,-500.0,0.00016986,2]
[425361426,1781722253000,-500.0,0.00016986,2]
[425361431,1781722253000,-500.0,0.00016986,2]
[425361425,1781722253000,-500.0,0.00016986,2]
[425361427,1781722253000,-812.0,0.00016986,2]
[425361422,1781722253000,-500.0,0.00016986,2]
[425361428,1781722253000,-659.66,0.00016986,2]
[425361430,1781722253000,-693.75,0.00016986,2]
[425361423,1781722253000,-500.0,0.00016986,2]
[425361432,1781722253000,-500.0,0.00016986,2]
[425361437,1781722253000,-500.0,0.00016986,2]
[425361436,1781722253000,-754.09,0.00016986,2]
[425361434,1781722253000,-500.0,0.00016986,2]
[425361435,1781722253000,-284.03752976,0.00016986,2]
[425361438,1781722253000,-500.0,0.00016986,2]
[425361433,1781722253000,-1358.43,0.00016986,2]
[425361442,1781722253000,-500.0,0.00016986,2]
[425361439,1781722253000,-500.0,0.00016986,2]
[425361443,1781722253000,-500.0,0.00016986,2]
[425361441,1781722253000,-500.0,0.00016986,2]
[425361472,1781722253000,-975.4,0.00016986,2]
[425361412,1781722253000,-500.0,0.00016986,2]
[425361477,1781722253000,-500.0,0.00016986,2]
[425361509,1781722253000,-215.87195099,0.00016986,2]
[425361510,1781722253000,-500.0,0.00016986,2]
[425361516,1781722253000,-615.46,0.00016986,2]
[425361515,1781722253000,-1576.6,0.00016986,2]
[425361522,1781722253000,-2162.59,0.00016986,2]
[425361520,1781722253000,-500.0,0.00016986,2]
[425361514,1781722253000,-500.0,0.00016986,2]
[425361521,1781722253000,-2221.85,0.00016986,2]
[425361517,1781722253000,-2258.76,0.00016986,2]
[425361519,1781722253000,-921.73,0.00016986,2]
[425361518,1781722253000,-500.0,0.00016986,2]
[425361524,1781722253000,-354434.90366428,0.00017,2]
[425361535,1781722253000,-500.0,0.0001726,2]
[425361534,1781722253000,-500.0,0.0001726,2]
[425361523,1781722253000,-500.0,0.00016986,2]
[425361526,1781722253000,-210.0,0.00017113,2]
[425361525,1781722253000,-305.82,0.00017041,2]
[425361528,1781722253000,-305.82,0.00017152,2]
[425361529,1781722253000,-306.59,0.00017188,2]
[425361530,1781722253000,-1873.5255,0.0001726,2]
[425361527,1781722253000,-279.8385,0.00017123,2]
[425361532,1781722253000,-1303.36,0.0001726,2]
[425361531,1781722253000,-500.0,0.0001726,2]
[425361533,1781722253000,-500.0,0.0001726,2]
[425361536,1781722253000,-606.00732219,0.0001726,2]
[425361538,1781722253000,-500.0,0.0001726,2]
[425361540,1781722253000,-500.0,0.0001726,2]
[425361537,1781722253000,-500.0,0.0001726,2]
[425361539,1781722253000,-500.0,0.0001726,2]
[425361512,1781722253000,-701.31,0.00016986,2]
[425361513,1781722253000,-656.06,0.00016986,2]
[425361541,1781722253000,-500.0,0.0001726,2]
[425361499,1781722253000,-500.0,0.00016986,2]
[425361511,1781722253000,-500.0,0.00016986,2]
[425361479,1781722253000,-859.62,0.00016986,2]
[425361478,1781722253000,-500.0,0.00016986,2]
[425361476,1781722253000,-500.0,0.00016986,2]
[425361483,1781722253000,-500.0,0.00016986,2]
[425361492,1781722253000,-500.0,0.00016986,2]
[425361491,1781722253000,-500.0,0.00016986,2]
[425361484,1781722253000,-588.0,0.00016986,2]
[425361494,1781722253000,-500.0,0.00016986,2]
[425361487,1781722253000,-500.0,0.00016986,2]
[425361482,1781722253000,-1380.44,0.00016986,2]
[425361490,1781722253000,-522.81,0.00016986,2]
[425361493,1781722253000,-500.0,0.00016986,2]
[425361485,1781722253000,-804.99,0.00016986,2]
[425361486,1781722253000,-500.0,0.00016986,2]
[425361475,1781722253000,-1850.59,0.00016986,2]
[425361488,1781722253000,-873.43,0.00016986,2]
[425361489,1781722253000,-500.0,0.00016986,2]
[425361503,1781722253000,-839.35,0.00016986,2]
[425361504,1781722253000,-1892.21,0.00016986,2]
[425361500,1781722253000,-500.0,0.00016986,2]
[425361495,1781722253000,-760.15,0.00016986,2]
[425361505,1781722253000,-500.0,0.00016986,2]
[425361498,1781722253000,-838.6,0.00016986,2]